bitfinex-derivatives/quotes_BTCF0:USTF0_20241110
["timestamp","ask_amount","ask_price","bid_price","bid_amount"]
[1731210077803,0.08691081,77354.0,77346.0,0.032304]
[1731210078002,0.00194,77355.0,77351.0,0.06457639]
[1731210078207,0.44771081,77352.0,77351.0,0.08452617]
[1731210078413,0.08691081,77352.0,77351.0,0.08452617]
[1731210079809,0.08691081,77352.0,77351.0,0.14909953]
[1731210080013,0.08691081,77352.0,77351.0,0.08452617]
[1731210080417,0.08691081,77352.0,77351.0,0.14908815]
[1731210081514,0.08691081,77352.0,77351.0,0.06456198]
[1731210082201,0.08885081,77355.0,77351.0,0.08404209]
[1731210082406,0.08885081,77355.0,77352.0,0.14859614]
[1731210082603,0.08691081,77353.0,77352.0,0.06455405]
[1731210083213,0.08691081,77353.0,77352.0,0.14858246]
[1731210083615,0.08691081,77353.0,77352.0,0.06455405]
[1731210084426,0.08691081,77353.0,77347.0,0.1058]
[1731210084723,0.08691081,77349.0,77347.0,0.1058]
[1731210087122,0.08691081,77349.0,77348.0,0.032303]
[1731210088223,0.08885081,77355.0,77350.0,0.032302]
[1731210088407,0.00194,77355.0,77354.0,0.08691081]
[1731210088814,0.00194,77355.0,77353.0,0.032301]
[1731210094521,0.00194,77355.0,77353.0,0.04792046]
[1731210095524,0.00194,77355.0,77354.0,0.06446159]
[1731210096021,0.00194,77355.0,77353.0,0.11238205]
[1731210098513,0.00194,77355.0,77353.0,0.04792046]
[1731210105530,0.00194,77355.0,77354.0,0.1058]
[1731210106629,0.00194,77355.0,77354.0,0.18942252]
[1731210107929,0.00194,77355.0,77354.0,0.18943906]
[1731210110422,0.00194,77355.0,77354.0,0.2668303]
[1731210112831,0.00194,77355.0,77354.0,0.08363906]
[1731210113132,0.00194,77355.0,77354.0,0.18923906]
[1731210113530,0.00194,77355.0,77354.0,0.1056]
[1731210121538,0.00194,77355.0,77354.0,0.26694257]
[1731210121745,0.00194,77355.0,77354.0,0.18942315]
[1731210122738,0.0311,77366.0,77354.0,0.18942315]
[1731210122930,0.0311,77366.0,77360.0,0.07756948]
[1731210123137,0.0311,77366.0,77358.0,0.3608]
[1731210123138,0.0311,77366.0,77362.0,0.07756948]
[1731210123336,0.0311,77366.0,77363.0,0.18942315]
[1731210123639,0.0311,77366.0,77365.0,0.06460648]
[1731210123842,0.0311,77366.0,77365.0,0.14842963]
[1731210124640,0.0311,77366.0,77363.0,0.1056]
[1731210124641,0.0311,77366.0,77364.0,0.06460648]
[1731210124947,0.08691081,77365.0,77364.0,0.06460648]
[1731210125148,0.36152,77370.0,77365.0,0.032296]
[1731210125342,0.08691081,77367.0,77366.0,0.08348126]
[1731210125548,0.3608,77370.0,77368.0,0.032295]
[1731210125745,0.3608,77370.0,77368.0,0.09686099]
[1731210126049,0.3608,77370.0,77369.0,0.06456599]
[1731210126448,0.3608,77370.0,77368.0,0.09686099]
[1731210126638,0.3608,77370.0,77368.0,0.032295]
[1731210127440,0.3608,77370.0,77368.0,0.01602155]
[1731210127640,0.0635,77369.0,77363.0,0.1056]
[1731210127844,0.08691081,77365.0,77363.0,0.1056]
[1731210129839,0.08691081,77365.0,77363.0,0.12144686]
[1731210133640,0.08691081,77365.0,77363.0,0.18601285]
[1731210133842,0.08691081,77365.0,77363.0,0.12144686]
[1731210135453,0.08691081,77365.0,77363.0,0.08041285]
[1731210135647,0.08691081,77365.0,77364.0,0.1056]
[1731210148073,0.08691081,77365.0,77364.0,0.10536]
[1731210150274,0.11920681,77365.0,77364.0,0.10536]
[1731210151777,0.11920681,77365.0,77364.0,0.14387813]
[1731210152178,0.11920681,77365.0,77364.0,0.10536]
[1731210155480,0.11920681,77365.0,77364.0,0.14392073]
[1731210157980,0.11920681,77365.0,77363.0,0.10536]
[1731210158780,0.3608,77364.0,77363.0,0.10536]
[1731210159187,0.393097,77364.0,77362.0,0.05135751]
[1731210159687,0.393097,77364.0,77363.0,0.05135751]
[1731210159874,0.48000781,77364.0,77363.0,0.05135751]
[1731210161785,0.48000781,77364.0,77362.0,0.05135751]
[1731210162091,0.032297,77362.0,77361.0,0.05135751]
[1731210162388,0.393097,77362.0,77361.0,0.05135751]
[1731210164688,0.393097,77362.0,77360.0,0.05135751]
[1731210164889,0.08691081,77361.0,77360.0,0.05135751]
[1731210166693,0.08691081,77361.0,77358.0,0.01554561]
[1731210166893,0.08691081,77361.0,77356.0,0.10536]
[1731210167081,0.08691081,77357.0,77356.0,0.10536]
[1731210167279,0.08691081,77357.0,77356.0,0.1211425]
[1731210167681,0.393857,77362.0,77356.0,0.1211425]
[1731210167894,0.393097,77362.0,77361.0,0.05134885]
[1731210169185,0.3608,77362.0,77361.0,0.05134885]
[1731210169386,0.032295,77368.0,77358.0,0.5445758]
[1731210169586,0.08691081,77368.0,77365.0,0.05135052]
[1731210169782,0.36148,77370.0,77366.0,0.10516]
[1731210169988,0.3608,77370.0,77369.0,0.05135153]
[1731210170296,0.3608,77370.0,77367.0,0.10516]
[1731210170593,0.032294,77369.0,77368.0,0.15651707]
[1731210170794,0.032294,77369.0,77368.0,0.10516]
[1731210171095,0.032294,77369.0,77368.0,0.14369177]
[1731210172893,0.032294,77369.0,77356.0,0.10986948]
[1731210172894,0.11920481,77369.0,77367.0,0.03853177]
[1731210173094,0.094,77368.0,77367.0,0.03853177]
[1731210173789,0.032295,77367.0,77363.0,0.10516]
[1731210173992,0.08691081,77365.0,77363.0,0.10516]
[1731210174291,0.08691081,77365.0,77361.0,0.10516]
[1731210174292,0.032296,77364.0,77361.0,0.10516]
[1731210174497,0.08691081,77362.0,77361.0,0.10516]
[1731210180493,0.08691081,77362.0,77360.0,0.10516]
[1731210180692,0.08691081,77361.0,77357.0,0.04749644]
[1731210180898,0.08691081,77361.0,77358.0,0.10516]
[1731210184493,0.08691081,77361.0,77358.0,0.16936669]
[1731210184698,0.08691081,77361.0,77358.0,0.10516]
[1731210184900,0.08691081,77361.0,77358.0,0.16936669]
[1731210185405,0.08691081,77361.0,77358.0,0.10516]
[1731210185606,0.08691081,77361.0,77358.0,0.16936669]
[1731210185996,0.08691081,77361.0,77358.0,0.10516]
[1731210186197,0.08691081,77359.0,77358.0,0.16936669]
[1731210187206,0.08691081,77359.0,77358.0,0.10516]
[1731210188305,0.08691081,77359.0,77358.0,0.16936669]
[1731210188504,0.08691081,77359.0,77358.0,0.10516]
[1731210188705,0.08691081,77359.0,77358.0,0.16936669]
[1731210188900,0.08691081,77359.0,77358.0,0.14367492]
[1731210189112,0.08691081,77359.0,77358.0,0.10516]
[1731210189610,0.08691081,77359.0,77358.0,0.14367553]
[1731210190001,0.08691081,77359.0,77358.0,0.10516]
[1731210190408,0.08691081,77359.0,77358.0,0.14367553]
[1731210191608,0.08691081,77359.0,77358.0,0.10516]
[1731210191806,0.08691081,77359.0,77358.0,0.14367553]
[1731210193306,0.08691081,77359.0,77358.0,0.10516]
[1731210194813,0.26073243,77359.0,77349.0,0.0385342]
[1731210195008,0.48001381,77350.0,77342.0,0.17459162]
[1731210195210,0.08691081,77345.0,77342.0,0.10709915]
[1731210195404,0.08691081,77345.0,77342.0,0.00193915]
[1731210195810,0.08691081,77345.0,77343.0,0.06420669]
[1731210196218,0.08691081,77345.0,77342.0,0.06614584]
[1731210196516,0.08691081,77345.0,77342.0,0.00193915]
[1731210197115,0.08691081,77343.0,77342.0,0.00193915]
[1731210197321,0.032305,77344.0,77342.0,0.00193915]
[1731210197515,0.17382162,77343.0,77342.0,0.00193915]
[1731210198112,0.53462162,77343.0,77342.0,0.00193915]
[1731210205513,0.3608,77343.0,77342.0,0.00193915]
[1731210205719,0.53462162,77343.0,77342.0,0.00193915]
[1731210207626,0.53462162,77343.0,77333.0,0.01599644]
[1731210207627,0.62153243,77343.0,77325.0,0.05136303]
[1731210207929,0.032311,77330.0,77328.0,0.10496]
[1731210208535,0.032311,77330.0,77327.0,0.01565325]
[1731210208736,0.032311,77330.0,77328.0,0.10496]
[1731210208938,0.08691081,77329.0,77328.0,0.10496]
[1731210209745,0.08691081,77329.0,77322.0,0.06465]
[1731210209746,0.032314,77323.0,77322.0,0.01617692]
[1731210209941,0.48002481,77323.0,77314.0,0.0301]
[1731210210141,0.08691081,77315.0,77314.0,0.0301]
[1731210210538,0.08691081,77315.0,77314.0,0.09475]
[1731210211339,0.00068,77323.0,77316.0,0.06465]
[1731210211541,0.3608,77334.0,77316.0,0.06465]
[1731210211542,0.3608,77334.0,77328.0,0.032311]
[1731210211735,0.3608,77334.0,77329.0,0.03]
[1731210212048,0.08691081,77331.0,77329.0,0.062311]
[1731210212348,0.08691081,77331.0,77330.0,0.0328]
[1731210212742,0.17382162,77331.0,77330.0,0.0328]
[1731210212942,0.08691081,77331.0,77330.0,0.0328]
[1731210213149,0.08691081,77331.0,77329.0,0.13496]
[1731210215549,0.08691081,77331.0,77325.0,0.06465]
[1731210215744,0.032313,77324.0,77318.0,0.05122136]
[1731210215946,0.08691081,77319.0,77318.0,0.05122136]
[1731210216145,0.08691081,77319.0,77316.0,0.05122136]
[1731210216443,0.08691081,77319.0,77316.0,0.15618136]
[1731210216850,0.08691081,77319.0,77317.0,0.06465]
[1731210218349,0.3608,77326.0,77317.0,0.06465]
[1731210218546,0.08691081,77323.0,77322.0,0.06465]
[1731210218746,0.08691081,77323.0,77322.0,0.16015]
[1731210218955,0.08691081,77323.0,77322.0,0.21137136]
[1731210219158,0.08691081,77323.0,77322.0,0.16015]
[1731210221257,0.08691081,77323.0,77322.0,0.22435669]
[1731210221461,0.08691081,77323.0,77322.0,0.16015]
[1731210221643,0.3608,77334.0,77322.0,0.39477871]
[1731210221850,0.3608,77334.0,77332.0,0.03231]
[1731210222360,0.3608,77334.0,77333.0,0.05124969]
[1731210223160,0.44771081,77334.0,77332.0,0.08355969]
[1731210223351,0.44771081,77334.0,77332.0,0.03231]
[1731210224054,0.44771081,77334.0,77332.0,0.083592]
[1731210224561,0.44771081,77334.0,77332.0,0.03231]
[1731210224952,0.44771081,77334.0,77333.0,0.05130419]
[1731210225254,0.44771081,77334.0,77332.0,0.03231]
[1731210227262,0.44771081,77334.0,77331.0,0.01569193]
[1731210227556,0.44771081,77334.0,77330.0,0.06465]
[1731210230060,0.44771081,77334.0,77328.0,0.06465]
[1731210230258,0.44771081,77334.0,77325.0,0.05130292]
[1731210230259,0.08691081,77330.0,77326.0,0.05130292]
[1731210230459,0.08691081,77330.0,77328.0,0.032311]
[1731210233969,0.08691081,77330.0,77329.0,0.06406212]
[1731210234361,0.08691081,77330.0,77329.0,0.14743195]
[1731210235767,0.08691081,77330.0,77328.0,0.032311]
[1731210235768,0.08691081,77330.0,77328.0,0.06406212]
[1731210235967,0.08691081,77330.0,77327.0,0.06406212]
[1731210236266,0.08691081,77328.0,77327.0,0.06406212]
[1731210236472,0.08691081,77328.0,77327.0,0.14746807]
[1731210237565,0.08691081,77328.0,77327.0,0.06406212]
[1731210237766,0.08691081,77328.0,77326.0,0.06406212]
[1731210237973,0.08691081,77328.0,77327.0,0.06406212]
[1731210238163,0.08691081,77328.0,77327.0,0.14728863]
[1731210240273,0.08691081,77328.0,77327.0,0.08322651]
[1731210240970,0.08691081,77328.0,77326.0,0.05138256]
[1731210241273,0.08691081,77328.0,77327.0,0.05138256]
[1731210242369,0.08691081,77328.0,77327.0,0.05139403]
[1731210245566,0.08691081,77328.0,77324.0,0.06465]
[1731210245774,0.08691081,77328.0,77326.0,0.05142404]
[1731210245973,0.08691081,77328.0,77325.0,0.05142404]
[1731210246279,0.08691081,77328.0,77327.0,0.05142404]
[1731210246575,0.08691081,77328.0,77324.0,0.113]
[1731210246971,0.08691081,77328.0,77327.0,0.0514164]
[1731210247176,0.08691081,77328.0,77324.0,0.080687]
[1731210247378,0.08691081,77328.0,77326.0,0.06465]
[1731210248268,0.08691081,77328.0,77326.0,0.12889254]
[1731210248670,0.08691081,77328.0,77326.0,0.06465]
[1731210248869,0.08691081,77328.0,77325.0,0.09655554]
[1731210248870,0.08691081,77328.0,77327.0,0.22447422]
[1731210250270,0.08691081,77328.0,77327.0,0.24573451]
[1731210250774,0.08691081,77328.0,77327.0,0.24550595]
[1731210251169,0.08691081,77328.0,77327.0,0.14715872]
[1731210251373,0.3608,77369.0,77335.0,0.06465]
[1731210251572,0.0324,77370.0,77360.0,0.3608]
[1731210251772,0.08691081,77373.0,77360.0,0.54650935]
[1731210251986,0.12021081,77374.0,77367.0,0.42489483]
[1731210252489,0.12021081,77374.0,77369.0,0.0511984]
[1731210252671,0.12021081,77374.0,77370.0,0.1559584]
[1731210252871,0.12021081,77374.0,77371.0,0.0511984]
[1731210253071,0.12021081,77374.0,77372.0,0.0511984]
[1731210253278,0.0333,77374.0,77371.0,0.0511984]
[1731210253476,0.0333,77374.0,77370.0,0.10476]
[1731210253682,0.0333,77374.0,77370.0,0.12053355]
[1731210254378,0.0324,77382.0,77370.0,0.12053355]
[1731210254586,0.0324,77382.0,77376.0,0.3608]
[1731210255677,0.36148,77390.0,77376.0,0.3608]
[1731210255678,0.13527418,77390.0,77381.0,0.032289]
[1731210255873,0.13527418,77390.0,77387.0,0.3608]
[1731210257078,0.49607418,77390.0,77388.0,0.10472]
[1731210257275,0.16756018,77389.0,77383.0,0.10472]
[1731210257479,0.13527418,77384.0,77377.0,0.3608]
[1731210257679,0.3608,77390.0,77377.0,0.3608]
[1731210257680,0.13527418,77378.0,77377.0,0.3608]
[1731210257978,0.13527418,77378.0,77377.0,0.46532]
[1731210258872,0.3608,77383.0,77377.0,0.46532]
[1731210259692,0.13527418,77378.0,77377.0,0.46532]
[1731210259882,0.13527418,77378.0,77377.0,0.3608]
[1731210260083,0.13527418,77378.0,77377.0,0.46532]
[1731210261478,0.13527418,77378.0,77377.0,0.10452]
[1731210264186,0.13527418,77378.0,77371.0,0.3608]
[1731210264380,0.04852708,77380.0,77371.0,0.3608]
[1731210264381,0.13527418,77372.0,77371.0,0.3608]
[1731210264585,0.0326,77377.0,77371.0,0.3608]
[1731210266179,0.3608,77383.0,77378.0,0.03229]
[1731210266386,0.032286,77390.0,77380.0,0.03229]
[1731210266678,0.032286,77390.0,77385.0,0.3608]
[1731210267290,0.0303,77392.0,77385.0,0.3608]
[1731210267483,0.0303,77392.0,77387.0,0.032287]
[1731210269293,0.032,77395.0,77389.0,0.032286]
[1731210269477,0.032,77395.0,77391.0,0.032285]
[1731210270294,0.032,77395.0,77392.0,0.10452]
[1731210270787,0.0019389,77406.0,77401.0,0.032281]
[1731210270991,0.0019389,77406.0,77402.0,0.10452]
[1731210273679,0.0019389,77406.0,77404.0,0.16755318]
[1731210274385,0.0019389,77406.0,77404.0,0.032279]
[1731210274594,0.0019389,77406.0,77402.0,0.1203289]
[1731210276484,0.0019389,77406.0,77403.0,0.10448]
[1731210276689,0.0019389,77406.0,77399.0,0.10448]
[1731210276690,0.032281,77401.0,77399.0,0.10448]
[1731210276885,0.032281,77401.0,77389.0,0.43604]
[1731210276886,0.0304,77400.0,77397.0,0.10448]
[1731210279996,0.0304,77400.0,77396.0,0.10448]
[1731210288696,0.0306,77405.0,77396.0,0.10448]
[1731210288897,0.0306,77405.0,77400.0,0.032281]
[1731210290704,0.01622439,77412.0,77404.0,0.3608]
[1731210290913,0.0657,77414.0,77404.0,0.3608]
[1731210291908,0.08135429,77414.0,77404.0,0.3608]
[1731210292905,0.08135429,77414.0,77405.0,0.10436]
[1731210293505,0.08135429,77414.0,77405.0,0.136639]
[1731210293908,0.032276,77413.0,77405.0,0.136639]
[1731210294697,0.0657,77414.0,77407.0,0.032278]
[1731210297008,0.0657,77414.0,77410.0,0.032277]
[1731210297507,0.0657,77414.0,77405.0,0.10436]
[1731210297896,0.0657,77414.0,77405.0,0.136639]
[1731210300201,0.0657,77414.0,77407.0,0.032278]
[1731210301013,0.3616,77417.0,77405.0,0.10436]
[1731210301311,0.3608,77417.0,77409.0,0.032278]
[1731210302304,0.032275,77416.0,77405.0,0.10436]
[1731210302501,0.032275,77416.0,77405.0,0.136639]
[1731210303204,0.032275,77416.0,77405.0,0.10436]
[1731210303405,0.032275,77416.0,77407.0,0.032278]
[1731210305105,0.3608,77417.0,77405.0,0.1555584]
[1731210305298,0.3608,77417.0,77406.0,0.10432]
[1731210305299,0.13527418,77414.0,77406.0,0.10432]
[1731210305502,0.032278,77408.0,77405.0,0.10432]
[1731210305705,0.0617,77407.0,77405.0,0.10432]
[1731210306712,0.19697418,77407.0,77404.0,0.3608]
[1731210307012,0.22857418,77407.0,77404.0,0.3608]
[1731210307311,0.22857418,77407.0,77402.0,0.10432]
[1731210307706,0.032279,77406.0,77402.0,0.10432]
[1731210311004,0.0307,77407.0,77402.0,0.46512]
[1731210311205,0.3608,77410.0,77404.0,0.16755418]
[1731210311405,0.3608,77410.0,77405.0,0.0309]
[1731210311807,0.032276,77414.0,77405.0,0.0309]
[1731210313506,0.3608,77418.0,77406.0,0.032279]
[1731210314615,0.3608,77418.0,77407.0,0.3608]
[1731210314817,0.3608,77418.0,77408.0,0.03841568]
[1731210315309,0.032276,77414.0,77408.0,0.03841568]
[1731210316113,0.032276,77414.0,77407.0,0.3608]
[1731210317223,0.3608,77418.0,77407.0,0.3608]
[1731210317423,0.032277,77412.0,77407.0,0.3608]
[1731210318514,0.032278,77409.0,77407.0,0.3608]
[1731210318718,0.0322,77408.0,77407.0,0.3608]
[1731210321119,0.0322,77408.0,77403.0,0.1042]
[1731210321323,0.03228,77404.0,77403.0,0.1042]
[1731210321715,0.06418,77404.0,77403.0,0.1042]
[1731210323717,0.06418,77404.0,77398.0,0.06465]
[1731210323718,0.032281,77401.0,77398.0,0.06465]
[1731210323926,0.032281,77401.0,77400.0,0.1042]
[1731210327120,0.0319,77404.0,77399.0,0.03844975]
[1731210327430,0.13527418,77400.0,77399.0,0.03844975]
[1731210328518,0.13527418,77400.0,77396.0,0.06465]
[1731210328718,0.032283,77397.0,77396.0,0.06465]
[1731210328914,0.16755718,77397.0,77395.0,0.0511984]
[1731210329120,0.16755718,77397.0,77395.0,0.02728563]
[1731210329420,0.032284,77395.0,77393.0,0.03845869]
[1731210329621,0.49607418,77394.0,77389.0,0.02728563]
[1731210329819,0.032288,77384.0,77383.0,0.06409483]
[1731210330024,0.52836218,77384.0,77383.0,0.06409483]
[1731210330221,1.11062313,77384.0,77383.0,0.06409483]
[1731210330623,1.41062313,77384.0,77383.0,0.06409483]
[1731210331220,0.032291,77378.0,77377.0,0.07709502]
[1731210331422,0.032291,77378.0,77356.0,0.14188394]
[1731210331423,0.032296,77366.0,77356.0,0.14188394]
[1731210331921,0.420056,77366.0,77356.0,0.14188394]
[1731210332521,0.032296,77366.0,77356.0,0.14188394]
[1731210333230,0.420056,77366.0,77356.0,0.14188394]
[1731210333428,0.032296,77366.0,77356.0,0.14188394]
[1731210334226,0.032297,77364.0,77354.0,0.00010132]
[1731210334430,0.13527418,77363.0,77354.0,0.00010132]
[1731210335628,0.01576897,77366.0,77354.0,0.00010132]
[1731210335929,0.3608,77367.0,77357.0,0.032299]
[1731210336537,0.13527418,77363.0,77354.0,0.00010132]
[1731210337137,0.13527418,77357.0,77354.0,0.00010132]
[1731210338336,0.13527418,77357.0,77353.0,0.0321]
[1731210342339,0.13527418,77354.0,77349.0,0.06676]
[1731210342529,0.13527418,77350.0,77334.0,0.0324]
[1731210342731,0.13527418,77344.0,77334.0,0.097]
[1731210345141,0.13527418,77338.0,77335.0,0.10428]
[1731210346029,0.13527418,77338.0,77334.0,0.097]
[1731210346231,0.16758118,77338.0,77334.0,0.097]
[1731210346839,0.13527418,77344.0,77334.0,0.097]
[1731210347232,0.13527418,77338.0,77334.0,0.097]
[1731210348444,0.032308,77336.0,77334.0,0.097]
[1731210349842,0.032308,77336.0,77334.0,0.0651]
[1731210350046,0.032308,77336.0,77334.0,0.0324]
[1731210352142,0.15084621,77338.0,77322.0,0.0303]
[1731210352335,0.032312,77328.0,77323.0,0.13616]
[1731210353440,0.032312,77328.0,77325.0,0.3608]
[1731210353640,0.13527418,77327.0,77325.0,0.3608]
[1731210355037,0.13527418,77327.0,77325.0,0.33494]
[1731210355439,0.13527418,77327.0,77323.0,0.13616]
[1731210360343,0.13527418,77332.0,77323.0,0.13616]
[1731210360946,0.37771917,77334.0,77323.0,0.13616]
[1731210360947,0.13527418,77326.0,77323.0,0.13616]
[1731210369647,0.02116975,77325.0,77323.0,0.13616]
[1731210369954,0.02116975,77324.0,77323.0,0.13616]
[1731210370156,0.05348275,77325.0,77323.0,0.13616]
[1731210370347,0.032313,77325.0,77323.0,0.13616]
[1731210370848,0.02115312,77324.0,77323.0,0.13616]
[1731210371353,0.02115312,77324.0,77323.0,0.032]
[1731210371545,0.032315,77320.0,77319.0,0.04641487]
[1731210371745,0.1887423,77320.0,77319.0,0.01561487]
[1731210371947,0.1887423,77320.0,77318.0,0.46668]
[1731210372248,0.02115312,77319.0,77318.0,0.465]
[1731210373142,0.02115312,77319.0,77318.0,0.48083004]
[1731210375441,0.02115312,77319.0,77318.0,0.12003004]
[1731210379948,0.02115312,77319.0,77318.0,0.48083004]
[1731210380254,0.13527418,77326.0,77318.0,0.59550703]
[1731210380458,0.13527418,77326.0,77322.0,0.0641582]
[1731210380652,0.13527418,77326.0,77323.0,0.03]
[1731210381154,0.13527418,77326.0,77324.0,0.0304]
[1731210381356,0.17391416,77325.0,77324.0,0.0304]
[1731210382559,0.08695708,77325.0,77324.0,0.0304]
[1731210383452,0.08695708,77325.0,77324.0,0.1766389]
[1731210383453,0.13544064,77325.0,77324.0,0.1766389]
[1731210383646,0.13544064,77325.0,77324.0,0.0628]
[1731210385247,0.13544064,77330.0,77324.0,0.0628]
[1731210385453,0.13544064,77330.0,77328.0,0.3608]
[1731210388749,0.01551649,77338.0,77328.0,0.3608]
[1731210389058,0.01551649,77338.0,77329.0,0.032311]
[1731210389653,0.13544064,77340.0,77329.0,0.032311]
[1731210392761,0.13544064,77334.0,77328.0,0.3608]
[1731210392957,0.13544064,77329.0,77326.0,0.05127769]
[1731210393157,0.13544064,77329.0,77327.0,0.10404]
[1731210393561,0.13544064,77340.0,77327.0,0.10404]
[1731210393862,0.13544064,77340.0,77333.0,0.3608]
[1731210394861,0.032307,77339.0,77333.0,0.3608]
[1731210399563,0.032307,77339.0,77333.0,0.37700397]
[1731210400066,0.00194067,77341.0,77333.0,0.37700397]
[1731210400270,0.00194067,77341.0,77336.0,0.032308]
[1731210400466,0.00194067,77341.0,77337.0,0.10404]
[1731210400861,0.00194067,77341.0,77338.0,0.0652]
[1731210401061,0.13738131,77341.0,77338.0,0.0652]
[1731210401959,0.16968731,77341.0,77338.0,0.0652]
[1731210402164,0.032307,77340.0,77339.0,0.10404]
[1731210405371,0.119223,77340.0,77339.0,0.10404]
[1731210408877,0.119223,77340.0,77334.0,0.10404]
[1731210409175,0.086916,77335.0,77334.0,0.16774]
[1731210411178,0.032307,77340.0,77334.0,0.16774]
[1731210411179,0.086916,77339.0,77334.0,0.16774]
[1731210411373,0.00194067,77341.0,77334.0,0.16774]
[1731210411572,0.00194067,77341.0,77338.0,0.032307]
[1731210411877,0.00194067,77341.0,77339.0,0.0302]
[1731210414282,0.08885667,77341.0,77339.0,0.0302]
[1731210416371,0.119223,77340.0,77339.0,0.0302]
[1731210416571,0.086916,77340.0,77336.0,0.16801712]
[1731210416766,0.032307,77339.0,77338.0,0.05129959]
[1731210416967,0.032307,77339.0,77337.0,0.05129959]
[1731210417385,0.032307,77339.0,77338.0,0.05129959]
[1731210417675,0.032308,77337.0,77336.0,0.05129959]
[1731210417880,0.119224,77337.0,77335.0,0.10392]
[1731210418081,0.119224,77337.0,77336.0,0.05131307]
[1731210418469,0.119224,77337.0,77335.0,0.10392]
[1731210418674,0.119224,77337.0,77336.0,0.05132005]
[1731210418868,0.119224,77337.0,77335.0,0.10392]
[1731210419077,0.119224,77337.0,77336.0,0.05132072]
[1731210419280,0.119224,77337.0,77335.0,0.10392]
[1731210424183,0.086916,77339.0,77335.0,0.15522814]
[1731210424385,0.086916,77339.0,77336.0,0.05130814]
[1731210426593,0.086916,77339.0,77338.0,0.3608]
[1731210429180,0.086916,77339.0,77338.0,0.50654141]
[1731210429693,0.086916,77339.0,77338.0,0.42489712]
[1731210430895,0.086916,77339.0,77338.0,0.44109173]
[1731210431991,0.086916,77339.0,77338.0,0.52276051]
[1731210432388,0.086916,77339.0,77338.0,0.47129173]
[1731210432693,0.086916,77339.0,77338.0,0.48882121]
[1731210432986,0.086916,77339.0,77338.0,0.55295843]
[1731210433192,0.086916,77339.0,77338.0,0.48882121]
[1731210433494,0.086916,77339.0,77338.0,0.55295496]
[1731210434192,0.086916,77339.0,77338.0,0.19215496]
[1731210434383,0.086916,77339.0,77338.0,0.55295496]
[1731210435995,0.086916,77339.0,77338.0,0.48882121]
[1731210436881,0.086916,77339.0,77338.0,0.55295068]
[1731210437085,0.3608,77351.0,77338.0,0.55295068]
[1731210437285,0.086916,77349.0,77345.0,0.3608]
[1731210437489,0.3608,77358.0,77348.0,0.032303]
[1731210437685,0.086916,77353.0,77349.0,0.0323]
[1731210442999,0.086916,77353.0,77345.0,0.3608]
[1731210443201,0.086916,77349.0,77340.0,0.032306]
[1731210443398,0.086916,77341.0,77336.0,0.08180465]
[1731210443604,0.086916,77341.0,77339.0,0.10376]
[1731210444297,0.086916,77341.0,77339.0,0.15506465]
[1731210444501,0.086916,77341.0,77339.0,0.10376]
[1731210446400,0.086916,77341.0,77340.0,0.10376]
[1731210449805,0.086916,77341.0,77340.0,0.14219209]
[1731210451002,0.086916,77341.0,77340.0,0.10376]
[1731210453299,0.086916,77341.0,77338.0,0.3608]
[1731210453507,0.086916,77341.0,77339.0,0.10376]
[1731210453699,0.086916,77341.0,77339.0,0.136067]
[1731210454397,0.086916,77341.0,77339.0,0.20019647]
[1731210457410,0.086916,77341.0,77339.0,0.136067]
[1731210457999,0.086916,77340.0,77338.0,0.3608]
[1731210458210,0.032307,77339.0,77338.0,0.3608]
[1731210461116,0.032307,77339.0,77336.0,0.46456]
[1731210461613,0.086916,77337.0,77336.0,0.46456]
[1731210473021,0.086916,77337.0,77336.0,0.10376]
[1731210473209,0.086916,77337.0,77336.0,0.52868947]
[1731210474216,0.086916,77337.0,77336.0,0.52856947]
[1731210474423,0.086916,77337.0,77336.0,0.46444]
[1731210476114,0.086916,77337.0,77336.0,0.50292181]
[1731210477414,0.086916,77337.0,77336.0,0.10364]
[1731210477726,0.086916,77337.0,77336.0,0.50292181]
[1731210478520,0.086916,77337.0,77336.0,0.46444]
[1731210480432,0.086916,77337.0,77336.0,0.50292181]
[1731210482325,0.086916,77337.0,77336.0,0.46444]
[1731210484229,0.086916,77337.0,77336.0,0.10364]
[1731210484618,0.086916,77337.0,77336.0,0.3608]
[1731210484838,0.086916,77337.0,77336.0,0.46444]
[1731210487434,0.086916,77337.0,77336.0,0.10364]
[1731210487624,0.086916,77337.0,77336.0,0.46444]
[1731210490039,0.086916,77337.0,77336.0,0.10364]
[1731210490226,0.086916,77337.0,77336.0,0.46444]
[1731210490719,0.086916,77337.0,77336.0,0.10364]
[1731210490934,0.086916,77337.0,77336.0,0.46444]
[1731210491328,0.086916,77337.0,77336.0,0.10364]
[1731210491530,0.086916,77337.0,77336.0,0.46444]
[1731210492929,0.086916,77337.0,77336.0,0.10364]
[1731210493131,0.086916,77337.0,77336.0,0.46444]
[1731210493633,0.086916,77337.0,77336.0,0.10364]
[1731210493833,0.086916,77337.0,77336.0,0.46444]
[1731210502334,0.086916,77337.0,77336.0,0.39934519]
[1731210502541,0.086916,77337.0,77336.0,0.3608]
[1731210505138,0.032309,77334.0,77332.0,0.19776947]
[1731210505342,0.086916,77333.0,77332.0,0.19776947]
[1731210505644,0.086916,77333.0,77332.0,0.13364]
[1731210506035,0.086916,77333.0,77332.0,0.19776947]
[1731210506239,0.086916,77333.0,77332.0,0.13364]
[1731210508343,0.10243512,77333.0,77332.0,0.13364]
[1731210513347,0.10243512,77333.0,77332.0,0.0302]
[1731210519047,0.032311,77329.0,77327.0,0.03856107]
[1731210519247,0.206143,77329.0,77327.0,0.03856107]
[1731210520154,0.119227,77329.0,77327.0,0.03856107]
[1731210520552,0.119227,77329.0,77326.0,0.0327]
[1731210521250,0.032312,77328.0,77326.0,0.0327]
[1731210522852,0.032312,77328.0,77327.0,0.0828786]
[1731210523049,0.119228,77328.0,77327.0,0.0828786]
[1731210527460,0.119228,77328.0,77326.0,0.0327]
[1731210529162,0.01714871,77327.0,77323.0,0.10348]
[1731210529368,0.119228,77328.0,77323.0,0.10348]
[1731210529369,0.086916,77325.0,77323.0,0.10348]
[1731210529556,0.01714871,77324.0,77323.0,0.10348]
[1731210529957,0.01714871,77324.0,77322.0,0.4252]
[1731210530262,0.01714871,77323.0,77322.0,0.4252]